[Event "7th Iberoamerican-ch 2019"]
[Site "Linares"]
[Date "2019.08.13"]
[Round "4.26"]
[White "Romero Berruezo, Francisco"]
[Black "Gavarrete, Nahun"]
[Result "1/2-1/2"]
[ECO "A05"]
[WhiteElo "2161"]
[BlackElo "2344"]
[Annotator "NA"]
[PlyCount "91"]
[EventDate "2019.08.10"]
[EventType "swiss"]
[EventCountry "ESP"]
[SourceTitle "playchess.com"]
[Source "ChessBase"]
[SourceQuality "1"]
[TimeControl "5400+30"]

1. Nf3 {[%emt 0:00:34]} Nf6 {[%emt 0:00:00]} 2. c4 {[%emt 0:00:06]} g6 {[%emt 0:00:21]} 3. Nc3 {[%emt 0:00:07]} d5 {[%emt 0:00:27]} 4. cxd5 {[%emt 0:00:15]} Nxd5 {[%emt 0:00:03]} 5. Qa4+ {[%emt 0:00:10]} Nc6 {[%emt 0:03:15]} 6. d3 {[%emt 0:06:26]} Bg7 {[%emt 0:03:12]} 7. Bd2 {[%emt 0:00:28]} O-O {[%emt 0:00:36]} 8. g3 {[%emt 0:02:29]} e5 {[%emt 0:02:41]} 9. Bg2 {[%emt 0:04:40]} Nb6 {[%emt 0:00:25]} 10. Qh4 {[%emt 0:01:27]} Qxh4 {[%emt 0:02:08]} 11. Nxh4 {[%emt 0:00:44]} Nd4 {[%emt 0:00:39]} 12. Rc1 {[%emt 0:00:42]} c6 {[%emt 0:00:08]} 13. h3 {[%emt 0:15:14]} Be6 {[%emt 0:03:44]} 14. e3 {[%emt 0:05:42]} g5 {[%emt 0:05:59]} 15. Nf3 {[%emt 0:02:58]} Nxf3+ {[%emt 0:00:28]} 16. Bxf3 {[%emt 0:00:05]} Rad8 {[%emt 0:00:13]} 17. Be2 {[%emt 0:01:02]} h6 {[%emt 0:06:00]} 18. h4 {[%emt 0:05:32]} g4 {[%emt 0:00:40]} 19. e4 {[%emt 0:03:35]} f5 {[%emt 0:15:01]} 20. exf5 {[%emt 0:01:40]} Bxf5 {[%emt 0:01:02]} 21. Ne4 {[%emt 0:00:15]} Rd4 {[%emt 0:08:30]} 22. Be3 {[%emt 0:11:06]} Bxe4 {[%emt 0:01:23]} 23. dxe4 {[%emt 0:00:05]} Rxe4 {[%emt 0:00:10]} 24. b3 {[%emt 0:03:53]} Nd5 {[%emt 0:01:30]} 25. Bd3 {[%emt 0:02:21]} Rxe3+ {[%emt 0:00:11]} 26. fxe3 {[%emt 0:00:04]} Rf3 {[%emt 0:00:33]} 27. Rg1 {[%emt 0:10:44]} b5 {[%emt 0:10:51]} 28. Rxc6 {[%emt 0:02:52]} Rxe3+ {[%emt 0:00:14]} 29. Be2 {[%emt 0:03:21]} e4 {[%emt 0:04:02]} 30. Rg6 {[%emt 0:10:48]} Kh7 {[%emt 0:04:30]} 31. Rxg4 {[%emt 0:03:29]} Bc3+ {[%emt 0:06:21]} 32. Kd1 {[%emt 0:00:45]} Bf6 {[%emt 0:13:49]} 33. Rg2 {[%emt 0:01:27]} h5 {[%emt 0:00:34]} 34. Rxe4 {[%emt 0:01:06]} Nc3+ {[%emt 0:04:56]} 35. Kd2 {[%emt 0:00:09]} Rxe4 {[%emt 0:00:02]} 36. Bd3 {[%emt 0:00:07]} Kg7 {[%emt 0:00:19]} 37. Bxe4 {[%emt 0:00:04]} Nxe4+ {[%emt 0:00:05]} 38. Ke3 {[%emt 0:00:10]} Nd6 {[%emt 0:00:17]} 39. g4 {[%emt 0:00:11]} hxg4 {[%emt 0:00:12]} 40. Rxg4+ {[%emt 0:00:05]} Kf7 {[%emt 0:00:19]} 41. a4 {[%emt 0:00:24]} Bxh4 {[%emt 0:02:03]} 42. axb5 {[%emt 0:00:39]} Ke6 {[%emt 0:01:43]} 43. Kd3 {[%emt 0:00:27]} Bd8 {[%emt 0:00:35]} 44. Rg6+ {[%emt 0:00:42]} Kd5 {[%emt 0:00:31]} 45. Rg7 {[%emt 0:00:57]} Bb6 {[%emt 0:00:35]} 46. Rg5+ {[%emt 0:00:23] Ke5 Ke4+} 1/2-1/2

[Event "7th Iberoamerican-ch 2019"]
[Site "Linares"]
[Date "2019.08.13"]
[Round "4.27"]
[White "Martinez-Conde Hernandez, Carlos"]
[Black "Blanco Acevedo, Cristobal Jose"]
[Result "1/2-1/2"]
[ECO "B33"]
[WhiteElo "2085"]
[BlackElo "2342"]
[Annotator "NA"]
[PlyCount "120"]
[EventDate "2019.08.10"]
[EventType "swiss"]
[EventCountry "ESP"]
[SourceTitle "playchess.com"]
[Source "ChessBase"]
[SourceQuality "1"]
[TimeControl "5400+30"]

1. e4 {[%emt 0:00:00]} c5 {[%emt 0:00:00]} 2. Nf3 {[%emt 0:00:00]} Nc6 {[%emt 0:00:00]} 3. d4 {[%emt 0:00:09]} cxd4 {[%emt 0:00:00]} 4. Nxd4 {[%emt 0:00:03]} Nf6 {[%emt 0:00:11]} 5. Nc3 {[%emt 0:00:14]} e5 {[%emt 0:00:04]} 6. Ndb5 {[%emt 0:00:12]} d6 {[%emt 0:00:04]} 7. Bg5 {[%emt 0:00:14]} a6 {[%emt 0:00:05]} 8. Na3 {[%emt 0:00:06]} b5 {[%emt 0:00:29]} 9. Nd5 {[%emt 0:00:20]} Be7 {[%emt 0:00:05]} 10. Bxf6 {[%emt 0:00:04]} Bxf6 {[%emt 0:00:03]} 11. c4 {[%emt 0:00:13]} b4 {[%emt 0:00:09]} 12. Nc2 {[%emt 0:00:02]} O-O {[%emt 0:00:14]} 13. g3 {[%emt 0:00:23]} Bg5 {[%emt 0:00:20]} 14. Bg2 {[%emt 0:00:17]} Qa5 {[%emt 0:01:14]} 15. O-O {[%emt 0:00:31]} Rb8 {[%emt 0:02:21]} 16. f4 {[%emt 0:06:48]} Qc5+ {[%emt 0:02:14]} 17. Kh1 {[%emt 0:00:13]} Bh6 {[%emt 0:01:15]} 18. Nce3 {[%emt 0:03:45]} Kh8 {[%emt 0:02:36]} 19. b3 {[%emt 0:06:52]} Nd4 {[%emt 0:13:50]} 20. Qh5 {[%emt 0:16:56]} exf4 {[%emt 0:02:45]} 21. gxf4 {[%emt 0:00:26]} f5 {[%emt 0:00:25]} 22. Rad1 {[%emt 0:04:01]} Be6 {[%emt 0:00:42]} 23. exf5 {[%emt 0:17:03]} Nxf5 {[%emt 0:00:45]} 24. Nxf5 {[%emt 0:00:02]} Rxf5 {[%emt 0:02:47]} 25. Qh4 {[%emt 0:01:26]} Re8 {[%emt 0:05:11]} 26. Rde1 {[%emt 0:02:46]} Rff8 {[%emt 0:00:35]} 27. f5 {[%emt 0:02:37]} Bxd5 {[%emt 0:02:43]} 28. Bxd5 {[%emt 0:00:35]} Rxe1 {[%emt 0:03:40]} 29. Rxe1 {[%emt 0:00:33]} Qc8 {[%emt 0:00:57]} 30. Qh5 {[%emt 0:08:52]} Qd8 {[%emt 0:06:28]} 31. Re6 {[%emt 0:05:31]} Bg5 {[%emt 0:00:53]} 32. Qe2 {[%emt 0:00:18]} Bf6 {[%emt 0:01:03]} 33. Qe4 {[%emt 0:01:06]} h6 {[%emt 0:06:56]} 34. Qg4 {[%emt 0:06:01]} Be5 {[%emt 0:00:58]} 35. Qh5 {[%emt 0:00:32]} Qg5 {[%emt 0:02:20]} 36. Qxg5 {[%emt 0:02:12]} hxg5 {[%emt 0:00:01]} 37. Re7 {[%emt 0:01:28]} Bd4 {[%emt 0:02:35]} 38. Bf7 {[%emt 0:01:12]} Kh7 {[%emt 0:01:22]} 39. Bg6+ {[%emt 0:00:03]} Kh6 {[%emt 0:00:13]} 40. Rd7 {[%emt 0:01:54]} Rf6 {[%emt 0:02:17]} 41. h3 {[%emt 0:00:25]} g4 {[%emt 0:00:13]} 42. h4 {[%emt 0:01:24]} Rf8 {[%emt 0:02:30]} 43. Rxd6 {[%emt 0:00:21]} Bf6 {[%emt 0:00:08]} 44. Rxa6 {[%emt 0:01:57]} Bxh4 {[%emt 0:00:08]} 45. Rd6 {[%emt 0:02:12]} Kg5 {[%emt 0:00:31]} 46. Kg2 {[%emt 0:00:21]} Be1 {[%emt 0:00:50]} 47. Re6 {[%emt 0:01:27]} Bc3 {[%emt 0:00:17]} 48. c5 {[%emt 0:01:57]} Ra8 {[%emt 0:00:05]} 49. Re4 {[%emt 0:01:25]} Rxa2+ {[%emt 0:00:27]} 50. Kg3 {[%emt 0:00:01]} Rc2 {[%emt 0:00:43]} 51. c6 {[%emt 0:02:32]} Bd2 {[%emt 0:01:41]} 52. Rxg4+ {[%emt 0:01:02]} Kf6 {[%emt 0:00:00]} 53. Be8 {[%emt 0:02:00]} Ke7 {[%emt 0:05:15]} 54. Bd7 {[%emt 0:00:06]} Bc3 {[%emt 0:00:06]} 55. Kf3 {[%emt 0:00:20]} Kd6 {[%emt 0:00:12]} 56. Rc4 {[%emt 0:00:37]} Kc7 {[%emt 0:00:05]} 57. Be6 {[%emt 0:00:54]} Rd2 {[%emt 0:00:25]} 58. Ke4 {[%emt 0:00:40]} Re2+ {[%emt 0:00:07]} 59. Kd3 {[%emt 0:00:11]} Rd2+ {[%emt 0:00:04]} 60. Ke4 {[%emt 0:00:03]} Re2+ {[%emt 0:00:04]} 1/2-1/2

[Event "7th Iberoamerican-ch 2019"]
[Site "Linares"]
[Date "2019.08.13"]
[Round "4.28"]
[White "Guerrero Vargas, Andres Jesus"]
[Black "Silva, Goncalo Nuno Neto Pi"]
[Result "0-1"]
[ECO "B24"]
[WhiteElo "2331"]
[BlackElo "2085"]
[Annotator "NA"]
[PlyCount "118"]
[EventDate "2019.08.10"]
[EventType "swiss"]
[EventCountry "ESP"]
[SourceTitle "playchess.com"]
[Source "ChessBase"]
[SourceQuality "1"]
[TimeControl "5400+30"]

1. e4 {[%emt 0:00:00]} c5 {[%emt 0:00:00]} 2. Nc3 {[%emt 0:00:00]} Nc6 {[%emt 0:00:00]} 3. Bb5 {[%emt 0:00:09]} g6 {[%emt 0:00:00]} 4. Bxc6 {[%emt 0:00:06]} dxc6 {[%emt 0:00:00]} 5. d3 {[%emt 0:00:13]} Bg7 {[%emt 0:00:01]} 6. Be3 {[%emt 0:00:07]} b6 {[%emt 0:00:05]} 7. Qd2 {[%emt 0:00:15]} e5 {[%emt 0:02:09]} 8. Nge2 {[%emt 0:02:11]} Nf6 {[%emt 0:00:24]} 9. Bh6 {[%emt 0:01:31]} Bxh6 {[%emt 0:01:22]} 10. Qxh6 {[%emt 0:00:04]} Ng4 {[%emt 0:00:08]} 11. Qd2 {[%emt 0:00:25]} Be6 {[%emt 0:04:51]} 12. f3 {[%emt 0:05:18]} Nf6 {[%emt 0:00:12]} 13. O-O-O {[%emt 0:09:19]} Qe7 {[%emt 0:00:46]} 14. f4 {[%emt 0:01:02]} Nd7 {[%emt 0:01:44]} 15. Rhf1 {[%emt 0:20:14]} f6 {[%emt 0:01:25]} 16. f5 {[%emt 0:02:15]} Bf7 {[%emt 0:00:33]} 17. g4 {[%emt 0:00:18]} g5 {[%emt 0:03:22]} 18. Rh1 {[%emt 0:04:36]} O-O-O {[%emt 0:00:53]} 19. h4 {[%emt 0:00:06]} h6 {[%emt 0:00:08]} 20. Rh2 {[%emt 0:00:28]} Rhf8 {[%emt 0:05:01]} 21. b3 {[%emt 0:01:50]} b5 {[%emt 0:07:31]} 22. Qe3 {[%emt 0:01:21]} Nb6 {[%emt 0:02:11]} 23. hxg5 {[%emt 0:01:56]} hxg5 {[%emt 0:00:10]} 24. Rh7 {[%emt 0:00:16]} c4 {[%emt 0:04:06]} 25. dxc4 {[%emt 0:00:02]} Rxd1+ {[%emt 0:02:45]} 26. Kxd1 {[%emt 0:05:38]} bxc4 {[%emt 0:01:10]} 27. Ke1 {[%emt 0:00:33]} Kb8 {[%emt 0:06:02]} 28. Kf2 {[%emt 0:03:00]} Qd6 {[%emt 0:02:12]} 29. Nc1 {[%emt 0:05:11]} Bg8 {[%emt 0:03:27]} 30. Rh1 {[%emt 0:05:57]} Qe7 {[%emt 0:04:14]} 31. a4 {[%emt 0:04:13]} cxb3 {[%emt 0:04:57]} 32. cxb3 {[%emt 0:00:35]} Rd8 {[%emt 0:04:27]} 33. a5 {[%emt 0:00:41]} Nd7 {[%emt 0:01:05]} 34. Na4 {[%emt 0:00:55]} Qb4 {[%emt 0:01:22]} 35. Rd1 {[%emt 0:08:16]} Qxa5 {[%emt 0:01:33]} 36. Qd3 {[%emt 0:00:38]} Kc8 {[%emt 0:01:05]} 37. Qd6 {[%emt 0:05:11]} Nb8 {[%emt 0:00:51]} 38. Qxd8+ {[%emt 0:01:06]} Qxd8 {[%emt 0:00:02]} 39. Rxd8+ {[%emt 0:00:01]} Kxd8 {[%emt 0:00:11]} 40. Ke3 {[%emt 0:00:45]} Kc7 {[%emt 0:00:29]} 41. Kd3 {[%emt 0:01:43]} Kd6 {[%emt 0:00:46]} 42. Kc3 {[%emt 0:00:10]} Bf7 {[%emt 0:01:34]} 43. Kb4 {[%emt 0:00:28]} Na6+ {[%emt 0:00:18]} 44. Kc3 {[%emt 0:00:57]} Nc7 {[%emt 0:00:39]} 45. b4 {[%emt 0:03:24]} Nb5+ {[%emt 0:01:13]} 46. Kd3 {[%emt 0:00:01]} Nd4 {[%emt 0:01:39]} 47. Nb2 {[%emt 0:04:10]} c5 {[%emt 0:01:15]} 48. bxc5+ {[%emt 0:00:30]} Kxc5 {[%emt 0:00:06]} 49. Kc3 {[%emt 0:00:13]} a5 {[%emt 0:01:32]} 50. Ncd3+ {[%emt 0:01:57]} Kb5 {[%emt 0:00:13]} 51. Nd1 {[%emt 0:00:05]} a4 {[%emt 0:02:43]} 52. Ne3 {[%emt 0:00:01]} a3 {[%emt 0:00:22]} 53. Nc1 {[%emt 0:00:56]} Bg8 {[%emt 0:02:00]} 54. Nd1 {[%emt 0:00:28]} Nf3 {[%emt 0:04:22]} 55. Ne3 {[%emt 0:00:23]} a2 {[%emt 0:00:14]} 56. Kb2 {[%emt 0:00:03]} Nd2 {[%emt 0:00:11]} 57. Nxa2 {[%emt 0:02:06]} Bxa2 {[%emt 0:00:30]} 58. Kxa2 {[%emt 0:00:05]} Kc5 {[%emt 0:00:20]} 59. Nd5 {[%emt 0:01:36]} Nxe4 {[%emt 0:00:06]} 0-1

[Event "7th Iberoamerican-ch 2019"]
[Site "Linares"]
[Date "2019.08.13"]
[Round "4.29"]
[White "Roselli Mailhe, Bernardo"]
[Black "Sanchez Jerez, Emilio Miguel"]
[Result "1-0"]
[ECO "A41"]
[WhiteElo "2471"]
[BlackElo "2232"]
[Annotator "ChessBase"]
[PlyCount "101"]
[EventDate "2019.08.10"]
[EventType "swiss"]
[EventCountry "ESP"]
[SourceTitle "playchess.com"]
[Source "ChessBase"]
[SourceQuality "1"]
[TimeControl "5400+30"]

1. d4 {[%emt 0:00:00]} d6 {[%emt 0:00:00]} 2. c4 {[%emt 0:00:00]} e5 {[%emt 0:00:12]} 3. Nf3 {[%emt 0:00:00]} e4 {[%emt 0:00:23]} 4. Nfd2 {[%emt 0:00:00]} f5 {[%emt 0:00:18]} 5. e3 {[%emt 0:00:00]} Nf6 {[%emt 0:00:52]} 6. Nc3 {[%emt 0:00:04]} c5 {[%emt 0:03:59]} 7. d5 {[%emt 0:06:25]} g6 {[%emt 0:01:58]} 8. f3 {[%emt 0:04:06]} exf3 {[%emt 0:08:26]} 9. Nxf3 {[%emt 0:00:06]} Bg7 {[%emt 0:01:32]} 10. Bd3 {[%emt 0:00:07]} O-O {[%emt 0:02:44]} 11. O-O {[%emt 0:00:37]} Qe7 {[%emt 0:06:40]} 12. Qc2 {[%emt 0:20:16]} Ng4 {[%emt 0:21:58]} 13. Kh1 {[%emt 0:21:47]} Nd7 {[%emt 0:01:27]} 14. Bd2 {[%emt 0:00:23]} Nde5 {[%emt 0:06:06]} 15. Rae1 {[%emt 0:01:45]} Nxd3 {[%emt 0:00:54]} 16. Qxd3 {[%emt 0:00:06]} a6 {[%emt 0:03:28]} 17. a4 {[%emt 0:00:31]} Bd7 {[%emt 0:03:25]} 18. b3 {[%emt 0:00:15]} Ne5 {[%emt 0:05:37]} 19. Nxe5 {[%emt 0:07:34]} Bxe5 {[%emt 0:00:28]} 20. Ne2 {[%emt 0:00:05]} b5 {[%emt 0:00:44]} 21. a5 {[%emt 0:01:02]} b4 {[%emt 0:03:38]} 22. Qb1 {[%emt 0:09:46]} Rae8 {[%emt 0:03:44]} 23. Ng1 {[%emt 0:01:08]} Qd8 {[%emt 0:05:06]} 24. Qa2 {[%emt 0:00:06]} Bg7 {[%emt 0:01:13]} 25. Re2 {[%emt 0:00:41]} Re4 {[%emt 0:00:41]} 26. Be1 {[%emt 0:01:26]} Qe7 {[%emt 0:03:35]} 27. Bg3 {[%emt 0:03:20]} h5 {[%emt 0:01:28]} 28. Rf4 {[%emt 0:02:25]} Rxe3 {[%emt 0:03:04]} 29. h4 {[%emt 0:07:18]} Rxe2 {[%emt 0:02:30]} 30. Qxe2 {[%emt 0:01:31]} Qd8 {[%emt 0:04:13]} 31. Rf3 {[%emt 0:00:55]} Bf6 {[%emt 0:02:00]} 32. Bxd6 {[%emt 0:01:26]} Re8 {[%emt 0:01:11]} 33. Re3 {[%emt 0:00:06]} Rxe3 {[%emt 0:01:11]} 34. Qxe3 {[%emt 0:00:10]} Qxa5 {[%emt 0:01:19]} 35. Qh6 {[%emt 0:02:18]} Bg7 {[%emt 0:00:42]} 36. Qxg6 {[%emt 0:00:13]} Qd8 {[%emt 0:00:30]} 37. Nf3 {[%emt 0:00:05]} Be8 {[%emt 0:00:42]} 38. Qe6+ {[%emt 0:00:38]} Bf7 {[%emt 0:00:18]} 39. Qe7 {[%emt 0:01:12]} Qxe7 {[%emt 0:00:40]} 40. Bxe7 {[%emt 0:00:05]} Bf8 {[%emt 0:00:33]} 41. Bxf8 {[%emt 0:00:07]} Kxf8 {[%emt 0:00:01]} 42. Ne5 {[%emt 0:00:06]} Ke7 {[%emt 0:00:50]} 43. d6+ {[%emt 0:00:07]} Kxd6 {[%emt 0:00:37]} 44. Nxf7+ {[%emt 0:00:05]} Ke6 {[%emt 0:00:30]} 45. Ng5+ {[%emt 0:00:34]} Ke5 {[%emt 0:00:20]} 46. Kg1 {[%emt 0:00:46]} a5 {[%emt 0:00:41]} 47. Kf2 {[%emt 0:00:32]} a4 {[%emt 0:00:31]} 48. bxa4 {[%emt 0:00:05]} Kd4 {[%emt 0:00:28]} 49. a5 {[%emt 0:01:18]} b3 {[%emt 0:00:10]} 50. Nf3+ {[%emt 0:01:55]} Kc3 {[%emt 0:00:22]} 51. Ke2 {[%emt 0:00:11] Kd3+ Kf2} 1-0

[Event "7th Iberoamerican-ch 2019"]
[Site "Linares"]
[Date "2019.08.13"]
[Round "4.30"]
[White "Lopez Mulet, Inigo"]
[Black "Fernandez Ayuso, Sergio"]
[Result "1-0"]
[ECO "E69"]
[WhiteElo "2378"]
[BlackElo "2173"]
[Annotator "NA"]
[PlyCount "99"]
[EventDate "2019.08.10"]
[EventType "swiss"]
[EventCountry "ESP"]
[SourceTitle "playchess.com"]
[Source "ChessBase"]
[SourceQuality "1"]
[TimeControl "5400+30"]

1. d4 {[%emt 0:00:00]} Nf6 {[%emt 0:00:00]} 2. c4 {[%emt 0:00:00]} g6 {[%emt 0:00:00]} 3. g3 {[%emt 0:00:00]} Bg7 {[%emt 0:01:03]} 4. Bg2 {[%emt 0:00:00]} O-O {[%emt 0:00:08]} 5. Nc3 {[%emt 0:00:01]} d6 {[%emt 0:00:14]} 6. Nf3 {[%emt 0:00:06]} c6 {[%emt 0:00:43]} 7. O-O {[%emt 0:00:24]} Nbd7 {[%emt 0:00:48]} 8. e4 {[%emt 0:00:45]} e5 {[%emt 0:03:05]} 9. h3 {[%emt 0:00:36]} Qe7 {[%emt 0:01:34]} 10. Be3 {[%emt 0:01:40]} b6 {[%emt 0:02:14]} 11. Re1 {[%emt 0:03:31]} Bb7 {[%emt 0:00:57]} 12. Qd2 {[%emt 0:01:44]} Rfe8 {[%emt 0:03:22]} 13. Bh6 {[%emt 0:07:23]} Bxh6 {[%emt 0:06:01]} 14. Qxh6 {[%emt 0:00:09]} Qf8 {[%emt 0:00:05]} 15. Qd2 {[%emt 0:00:59]} Rad8 {[%emt 0:00:47]} 16. Qc2 {[%emt 0:15:39]} h6 {[%emt 0:11:16]} 17. Re2 {[%emt 0:03:00]} Kg7 {[%emt 0:06:40]} 18. d5 {[%emt 0:07:09]} c5 {[%emt 0:03:37]} 19. Rf1 {[%emt 0:01:41]} Qe7 {[%emt 0:03:09]} 20. Ne1 {[%emt 0:02:44]} Nh5 {[%emt 0:05:22]} 21. Nd3 {[%emt 0:00:53]} Kh7 {[%emt 0:00:54]} 22. a3 {[%emt 0:02:26]} Rc8 {[%emt 0:01:14]} 23. Kh2 {[%emt 0:01:09]} f6 {[%emt 0:07:01]} 24. Nd1 {[%emt 0:04:27]} Ng7 {[%emt 0:02:58]} 25. Ne3 {[%emt 0:00:11]} Rb8 {[%emt 0:03:11]} 26. b4 {[%emt 0:01:00]} Rec8 {[%emt 0:00:36]} 27. Qd2 {[%emt 0:01:23]} h5 {[%emt 0:05:11]} 28. f4 {[%emt 0:01:46]} Ra8 {[%emt 0:01:29]} 29. Ref2 {[%emt 0:01:44]} cxb4 {[%emt 0:04:06]} 30. axb4 {[%emt 0:00:33]} Rf8 {[%emt 0:01:10]} 31. b5 {[%emt 0:03:38]} a5 {[%emt 0:00:47]} 32. bxa6 {[%emt 0:00:07]} Rxa6 {[%emt 0:01:17]} 33. Nb4 {[%emt 0:00:27]} Raa8 {[%emt 0:04:07]} 34. Nc6 {[%emt 0:00:49]} Qe8 {[%emt 0:00:05]} 35. Qb4 {[%emt 0:03:47]} exf4 {[%emt 0:04:02]} 36. Rxf4 {[%emt 0:00:53]} Bxc6 {[%emt 0:01:43]} 37. dxc6 {[%emt 0:00:07]} Nc5 {[%emt 0:00:07]} 38. Nd5 {[%emt 0:05:50]} Nd3 {[%emt 0:04:30]} 39. Qxd6 {[%emt 0:00:16]} Nxf4 {[%emt 0:00:16]} 40. Qxf4 {[%emt 0:00:15]} Qxc6 {[%emt 0:04:12]} 41. Nxf6+ {[%emt 0:01:26]} Rxf6 {[%emt 0:00:10]} 42. Qxf6 {[%emt 0:00:06]} Qxf6 {[%emt 0:00:36]} 43. Rxf6 {[%emt 0:00:12]} Rc8 {[%emt 0:00:14]} 44. Bf1 {[%emt 0:01:44]} Re8 {[%emt 0:05:21]} 45. Rxb6 {[%emt 0:00:16]} Rxe4 {[%emt 0:00:03]} 46. Bd3 {[%emt 0:00:20]} Re6 {[%emt 0:00:03]} 47. c5 {[%emt 0:00:08]} Kh6 {[%emt 0:01:57]} 48. h4 {[%emt 0:00:15]} Kh7 {[%emt 0:01:16]} 49. Kg2 {[%emt 0:00:21]} Kh8 {[%emt 0:00:53]} 50. Bxg6 {[%emt 0:00:15]} 1-0

[Event "7th Iberoamerican-ch 2019"]
[Site "Linares"]
[Date "2019.08.13"]
[Round "4.31"]
[White "Garcia Martin, Marta"]
[Black "Vega Gutierrez, Belinda"]
[Result "1-0"]
[ECO "C55"]
[WhiteElo "2335"]
[BlackElo "2133"]
[Annotator "NA"]
[PlyCount "87"]
[EventDate "2019.08.10"]
[EventType "swiss"]
[EventCountry "ESP"]
[SourceTitle "playchess.com"]
[Source "ChessBase"]
[SourceQuality "1"]
[TimeControl "5400+30"]

1. e4 {[%emt 0:00:00]} e5 {[%emt 0:00:00]} 2. Nf3 {[%emt 0:00:00]} Nc6 {[%emt 0:00:00]} 3. Bc4 {[%emt 0:00:00]} Nf6 {[%emt 0:00:00]} 4. d3 {[%emt 0:00:00]} Be7 {[%emt 0:00:03]} 5. O-O {[%emt 0:00:01]} O-O {[%emt 0:00:10]} 6. Re1 {[%emt 0:00:06]} d6 {[%emt 0:00:09]} 7. a4 {[%emt 0:00:09]} Be6 {[%emt 0:00:12]} 8. Nbd2 {[%emt 0:07:35]} Bxc4 {[%emt 0:01:42]} 9. Nxc4 {[%emt 0:00:17]} Re8 {[%emt 0:00:24]} 10. a5 {[%emt 0:12:31]} a6 {[%emt 0:02:31]} 11. c3 {[%emt 0:00:43]} Qd7 {[%emt 0:09:28]} 12. Qb3 {[%emt 0:03:22]} Bf8 {[%emt 0:00:44]} 13. Bg5 {[%emt 0:11:39]} Nh5 {[%emt 0:09:19]} 14. h3 {[%emt 0:17:55]} h6 {[%emt 0:00:46]} 15. Bd2 {[%emt 0:00:24]} Nf6 {[%emt 0:09:12]} 16. Ne3 {[%emt 0:00:46]} g6 {[%emt 0:02:22]} 17. Nh2 {[%emt 0:08:39]} Bg7 {[%emt 0:02:02]} 18. Nhg4 {[%emt 0:00:43]} Nxg4 {[%emt 0:07:16]} 19. hxg4 {[%emt 0:00:04]} Ne7 {[%emt 0:12:18]} 20. Ra4 {[%emt 0:11:23]} Rab8 {[%emt 0:00:27]} 21. g3 {[%emt 0:03:46]} Red8 {[%emt 0:03:32]} 22. c4 {[%emt 0:04:10]} Nc6 {[%emt 0:03:29]} 23. Qd1 {[%emt 0:00:06]} Nd4 {[%emt 0:00:37]} 24. Ra1 {[%emt 0:03:44]} c6 {[%emt 0:01:25]} 25. Kg2 {[%emt 0:00:16]} Rf8 {[%emt 0:02:34]} 26. Bc3 {[%emt 0:01:25]} Rbd8 {[%emt 0:12:58]} 27. Rh1 {[%emt 0:00:37]} Qe7 {[%emt 0:00:59]} 28. f4 {[%emt 0:03:08]} exf4 {[%emt 0:15:42]} 29. gxf4 {[%emt 0:05:58]} f5 {[%emt 0:00:28]} 30. Bxd4 {[%emt 0:00:30]} Bxd4 {[%emt 0:00:30]} 31. gxf5 {[%emt 0:00:52]} Bxe3 {[%emt 0:02:45]} 32. Qg4 Qg7 33. Kf3 {[%emt 0:01:40]} h5 {[%emt 0:01:37]} 34. Qg5 {[%emt 0:01:50]} Bd4 {[%emt 0:00:40]} 35. fxg6 {[%emt 0:01:13]} Rf6 {[%emt 0:00:22]} 36. f5 {[%emt 0:01:03]} Rdf8 {[%emt 0:00:06]} 37. Ke2 {[%emt 0:00:54]} d5 {[%emt 0:00:47]} 38. Rxh5 {[%emt 0:00:42]} Rxf5 {[%emt 0:00:44]} 39. exf5 {[%emt 0:00:36]} Qe5+ {[%emt 0:00:26]} 40. Kf3 {[%emt 0:00:35]} Re8 {[%emt 0:00:13]} 41. Qd2 {[%emt 0:00:31]} Be3 {[%emt 0:00:26]} 42. Qh2 {[%emt 0:00:20]} Bf4 {[%emt 0:00:42]} 43. Rh8+ {[%emt 0:00:32]} Qxh8 {[%emt 0:00:16]} 44. Qxh8+ {[%emt 0:00:05]} 1-0

[Event "7th Iberoamerican-ch 2019"]
[Site "Linares"]
[Date "2019.08.13"]
[Round "4.32"]
[White "Garcia, Jhoel"]
[Black "Gil Quilez, Sonia"]
[Result "0-1"]
[ECO "D52"]
[WhiteElo "2290"]
[BlackElo "2077"]
[Annotator "NA"]
[PlyCount "61"]
[EventDate "2019.08.10"]
[EventType "swiss"]
[EventCountry "ESP"]
[SourceTitle "playchess.com"]
[Source "ChessBase"]
[SourceQuality "1"]
[TimeControl "5400+30"]

1. Nf3 {[%emt 0:05:27]} d5 {[%emt 0:00:00]} 2. d4 {[%emt 0:00:08]} Nf6 {[%emt 0:00:05]} 3. c4 {[%emt 0:00:05]} c6 {[%emt 0:00:15]} 4. Nc3 {[%emt 0:00:12]} e6 {[%emt 0:00:27]} 5. Bg5 {[%emt 0:00:20]} Nbd7 {[%emt 0:00:46]} 6. e3 {[%emt 0:02:42]} Qa5 {[%emt 0:02:36]} 7. Nd2 {[%emt 0:16:09]} dxc4 {[%emt 0:02:35]} 8. Bh4 {[%emt 0:02:31]} b5 {[%emt 0:02:13]} 9. a4 {[%emt 0:16:51]} Qb6 {[%emt 0:06:08]} 10. Be2 {[%emt 0:00:57]} a6 {[%emt 0:02:47]} 11. O-O {[%emt 0:02:01]} Bb7 {[%emt 0:02:11]} 12. b3 {[%emt 0:04:24]} Nd5 {[%emt 0:08:16]} 13. Qc2 {[%emt 0:10:13]} Bb4 {[%emt 0:18:27]} 14. Nce4 {[%emt 0:02:32]} c3 {[%emt 0:22:43]} 15. Nb1 {[%emt 0:00:34]} c5 {[%emt 0:00:56]} 16. dxc5 {[%emt 0:02:58]} Nxc5 {[%emt 0:00:48]} 17. Nbxc3 {[%emt 0:00:25]} Nxe4 {[%emt 0:01:34]} 18. Nxe4 {[%emt 0:00:30]} Nxe3 {[%emt 0:05:04]} 19. fxe3 {[%emt 0:01:16]} Qxe3+ {[%emt 0:00:38]} 20. Nf2 {[%emt 0:00:39]} Bc3 {[%emt 0:05:37]} 21. Rad1 {[%emt 0:03:18]} b4 {[%emt 0:01:04]} 22. Qd3 {[%emt 0:00:12]} Qxd3 {[%emt 0:01:14]} 23. Nxd3 {[%emt 0:00:23]} Rc8 {[%emt 0:01:22]} 24. Bf2 {[%emt 0:01:03]} Bd5 {[%emt 0:02:52]} 25. Nc5 {[%emt 0:01:38]} a5 {[%emt 0:00:36]} 26. Bf3 {[%emt 0:01:19]} Bxf3 {[%emt 0:04:09]} 27. gxf3 {[%emt 0:00:10]} Bf6 {[%emt 0:03:53]} 28. Nb7 {[%emt 0:01:40]} Ra8 {[%emt 0:02:07]} 29. Bb6 {[%emt 0:02:29]} O-O {[%emt 0:00:51]} 30. Nxa5 {[%emt 0:00:18]} Rfb8 {[%emt 0:00:44]} 31. Nc4 {[%emt 0:00:13]} 0-1